Cogmind - Beta 15 @@@ ROGUE MODE // 2025.06.26 @ 15:06:18 Player: Annull999 Result: Destroyed by S-10 Pest with Light Assault Rifle Performance ------------- Evolutions (1) 500 Regions Visited (5) 1000 Robots Destroyed (14) 70 Value Destroyed (336) 336 Prototype IDs (0) 0 Alien Tech Used (0) 0 Bonus (7) 7 TOTAL SCORE: 1913 Bonus ------- Follower Combat Kills 7 Cogmind --------- Core Integrity 0/400 Matter 251/300 Energy 100/100 System Corruption 2% Temperature Cool (0) Movement Core (50) Location -8/Mines Parts ------- > --- POWER (1) -------- (None) > --- PROPULSION (4) --- (None) > --- UTILITY (2) ------ (None) > --- WEAPON (2) ------- (None) > --- INVENTORY (5) ---- Aluminum Leg Signal Interpreter Terrain Scanner EM Pulse Gun Datajack Peak State ------------ > --- POWER ------------ Ion Engine > --- PROPULSION ------- Aluminum Leg Aluminum Leg Compact Wheel Compact Wheel > --- UTILITY ---------- High-capacity Storage Unit Medium Armor Plating > --- WEAPON ----------- Assault Rifle Rocket Launcher > --- INVENTORY -------- Light Ion Engine Flight Unit Flight Unit Flight Unit Small Storage Unit High-capacity Matter Pod Signal Interpreter Terrain Scanner ECM Suite EM Pulse Gun Light Assault Rifle Datajack [Rating: 12] Favorites ----------- Power Ion Engine Engine Ion Engine Propulsion Compact Wheel Leg Aluminum Leg Wheel Compact Wheel Flight Unit Flight Unit Utility High-capacity Storage Unit Device ECM Suite Storage High-capacity Storage Unit Processor Signal Interpreter Protection Light Armor Plating Weapon Assault Rifle Energy Gun Medium Laser Ballistic Gun Assault Rifle Launcher Rocket Launcher Build | -11 -10 -9 -9 -9 -8 ------- Run | Yrd Mat Mat Min Exi Min Slots Evolved 2 | . . 2 . . . Power . | . . . . . . Propulsion 2 | . . 2 . . . Utility . | . . . . . . Weapon . | . . . . . . Parts Attached 22 | . 5 13 3 . 1 Power 4 | . 1 3 . . . Engine 4 | . 1 3 . . . Core . | . . . . . . Reactor . | . . . . . . Propulsion 10 | . 2 6 2 . . Treads . | . . . . . . Leg 2 | . . 2 . . . Wheel 3 | . 2 1 . . . Hover . | . . . . . . Flight 5 | . . 3 2 . . Utility 6 | . 2 3 . . 1 Device 1 | . . . . . 1 Storage 2 | . 1 1 . . . Processor 1 | . 1 . . . . Hackware . | . . . . . . Protection 2 | . . 2 . . . Artifact . | . . . . . . Weapon 2 | . . 1 1 . . Energy Gun . | . . . . . . Energy Cannon . | . . . . . . Ballistic Gun 1 | . . . 1 . . Ballistic Cannon . | . . . . . . Launcher 1 | . . 1 . . . Special Weapon . | . . . . . . Impact Weapon . | . . . . . . Slashing Weapon . | . . . . . . Piercing Weapon . | . . . . . . Special Melee Weapon . | . . . . . . Unidentified Prototypes . | . . . . . . Parts Lost 14 | . . 4 3 . 7 Power 2 | . . . 1 . 1 Propulsion 7 | . . 2 1 . 4 Utility 3 | . . 1 1 . 1 Weapon 2 | . . 1 . . 1 Highest Loss Streak 7 | . . 4 3 . 7 To Critical Strikes 1 | . . . . . 1 Average Backups 10 | 6 11 14 7 6 5 Power 1 | 1 1 1 . . . Propulsion 3 | 4 4 4 1 1 1 Utility 3 | . 3 5 3 3 2 Weapon 1 | 1 1 2 1 1 1 Tool/Special . | . . . . . . Unused Backups 11 | . 4 3 . . 4 Power . | . . . . . . Propulsion 2 | . 2 . . . . Utility 4 | . . 2 . . 2 Weapon 4 | . 2 1 . . 1 Tool/Special 1 | . . . . . 1 Average Slot Usage (%) 85 | . 98 82 68 77 39 Engine 11 | . 14 10 9 11 4 Leg 4 | . 4 6 . . . Wheel 18 | . 23 24 . . . Flight 7 | . . 1 35 44 19 Storage 12 | . 14 11 11 11 7 Processor 8 | . 12 6 . . . Protection 2 | . . 4 7 . . Energy Gun 7 | . 14 3 . . . Ballistic Gun 11 | . 14 10 4 11 5 Launcher 1 | . . 4 . . . Peak Build Rating 12 | 6 8 12 8 8 9 Average Rating 7 | 6 7 9 6 8 3 On Entrance 7 | 6 6 8 6 8 8 Naked Turns 30 | . . . . . 30 Heaviest Build 58 | 12 49 58 13 13 15 Greatest Support 42 | 20 32 42 16 16 16 Greatest Overweight (x) 1 | . 1 1 1 . 1 Average Overweight (x) . | . . . . . . Largest Inventory Capacity 20 | 8 20 20 8 8 8 Average Capacity 16 | 8 18 19 8 8 6 Most Carried 17 | 6 17 16 8 6 6 Average Carried 11 | 6 11 14 7 6 5 Final Capacity 20 | 8 20 8 8 8 5 Final Carried 17 | 6 17 8 6 6 5 Class Distribution -------------------- 94% | Mutant 5% | Scavenger-Sprinter Dominant Class ---------------- Mutant | -10/Materials Mutant | -9/Materials Mutant | -9/Mines Scavenger-Sprinter | -9/Exiles Mutant | -8/Mines Resources | -11 -10 -9 -9 -9 -8 ----------- Run | Yrd Mat Mat Min Exi Min Matter Collected 561 | 200 96 101 164 . . Remotely . | . . . . . . Salvage Created 229 | . 60 134 35 . . Parts 21 | . 8 11 2 . . Haulers Intercepted . | . . . . . . Recyclers Shooed . | . . . . . . Parts Field Recycled . | . . . . . . Retrieved Matter . | . . . . . . Parts Self-Destructed . | . . . . . . Prevented . | . . . . . . Kills | -11 -10 -9 -9 -9 -8 ------- Run | Yrd Mat Mat Min Exi Min Combat Hostiles Destroyed 10 | . 3 5 2 . . Guns 6 | . 3 1 2 . . AOE 4 | . . 4 . . . Classes Destroyed 7 | . 2 5 . . . Builder 1 | . 1 . . . . Recycler 1 | . . 1 . . . Watcher 2 | . . 2 . . . Swarmer 5 | . 3 . 2 . . Grunt 3 | . . 3 . . . Brawler 1 | . . 1 . . . Sentry 1 | . . 1 . . . Best Kill Streak 7 | . 4 7 2 . . Combat Bots Only 4 | . 3 4 2 . . Max Kills in Single Turn 1 | . 1 1 1 . . Gunslinging . | . . . . . . Exploded 1 | . . 1 . . . Melee . | . . . . . . Uniques/NPCs Destroyed . | . . . . . . Combat | -11 -10 -9 -9 -9 -8 -------- Run | Yrd Mat Mat Min Exi Min Hostile Shots Fired 193 | . 27 49 31 . 86 Missed 67 | . 9 13 14 . 31 Hits 126 | . 18 36 17 . 55 Projectile 126 | . 18 36 17 . 55 Critical Strikes 1 | . . . . . 1 Damage Taken 1381 | . 159 568 167 . 487 Core 431 | . 29 67 39 . 296 Absorbed by Shields . | . . . . . . Core Remaining (%) 94 | 100 88 . . . . Volleys Fired 37 | . 5 16 10 . 6 Largest 2 | . 2 2 1 . 1 Hottest 70 | . 70 70 20 . 20 Shots Fired 57 | . 10 31 10 . 6 Gun 43 | . 10 17 10 . 6 Cannon . | . . . . . . Launcher 14 | . . 14 . . . Special . | . . . . . . Kinetic 37 | . 5 16 10 . 6 Thermal 6 | . 5 1 . . . Explosive 14 | . . 14 . . . Electromagnetic . | . . . . . . Robot Hit Streak 13 | . 1 13 2 . 1 Robot Miss Streak 6 | . 2 6 2 . 3 Penetration Max . | . . . . . . Secondary Targets 1 | . 1 . . . . Max Gunslinging Chain 1 | . 1 . . . . Shots Hit Robots 32 | . 5 20 5 . 2 Core Hits 21 | . 4 13 2 . 2 Critical Kills . | . . . . . . Critical Parts Destroyed . | . . . . . . Critical Strikes . | . . . . . . Melee Attacks . | . . . . . . Impact . | . . . . . . Slashing . | . . . . . . Piercing . | . . . . . . Sneak Attacks . | . . . . . . Combat Hostiles . | . . . . . . Follow-up Attacks . | . . . . . . Damage Inflicted 954 | . 80 781 42 . 51 Guns 281 | . 80 134 42 . 25 Cannons . | . . . . . . Explosions 647 | . . 647 . . . Melee . | . . . . . . Ramming 26 | . . . . . 26 Kinetic 255 | . 54 134 42 . 25 Thermal 91 | . 26 65 . . . Explosive 582 | . . 582 . . . Electromagnetic . | . . . . . . Impact . | . . . . . . Slashing . | . . . . . . Piercing . | . . . . . . Highest Corruption 2 | . . . . . 2 Average Corruption 2 | . . . . . 2 Corruption Purged . | . . . . . . Corruption Blocked . | . . . . . . Overload Shots . | . . . . . . Overflow Damage . | . . . . . . Projectiles . | . . . . . . Explosions . | . . . . . . Melee . | . . . . . . Knockbacks 1 | . . . . . 1 Impact 1 | . . . . . 1 Kinetic . | . . . . . . Secondary . | . . . . . . Self-Inflicted Damage 162 | . . 150 . . 12 Shots 7 | . . 7 . . . Rammed 7 | . . . . . 7 Targets Rammed 7 | . . . . . 7 Kicked . | . . . . . . Crushed . | . . . . . . Highest Temperature 36 | . 36 6 6 . 2 Average Temperature 9 | . 16 3 3 . 1 Received Heat Transfer 270 | . 48 204 18 . . Siege Activations . | . . . . . . Martial Activations . | . . . . . . Shielding Activations . | . . . . . . Robots Disrupted . | . . . . . . Combat Hostiles . | . . . . . . Robots Corrupted . | . . . . . . Combat Hostiles . | . . . . . . Parts Fried . | . . . . . . Impact Corruptions . | . . . . . . Robots Melted . | . . . . . . Combat Hostiles . | . . . . . . Parts Melted . | . . . . . . Heat Transferred 124 | . 74 50 . . . Parts Sabotaged . | . . . . . . Parts Stolen . | . . . . . . Parts Stripped . | . . . . . . Power Chain Reactions . | . . . . . . Alert | -11 -10 -9 -9 -9 -8 ------- Run | Yrd Mat Mat Min Exi Min Maximum Alert Level 1 | . . 1 . . . Low Security (%) 95 | 100 100 83 100 . 100 Level 1 4 | . . 16 . . . Level 2 . | . . . . . . Level 3 . | . . . . . . Level 4 . | . . . . . . Level 5 . | . . . . . . High Security . | . . . . . . Max Security . | . . . . . . Peak Influence 268 | . 75 268 127 . 15 Initial 84 | . . . 84 . . Average 31 | . 9 54 96 . 2 Influence Increases 543 | . 87 318 123 . 15 Destroy 0b10 Robot/C 220 | . 60 100 60 . . Destroy 0b10 Robot/NC 20 | . 5 15 . . . Destroy Leader 54 | . 10 34 10 . . Allied During Kill 8 | . . . 8 . . Successful Hack 12 | . 12 . . . . Disable Machine 90 | . . 75 15 . . Destroy Structure 94 | . . 94 . . . Lose Combat Pursuer 45 | . . . 30 . 15 Influence Decreases 543 | . 87 100 234 107 15 Entered New Map 241 | . . . 134 107 . Time Decay 232 | . 87 60 70 . 15 Lost Part 70 | . . 40 30 . . Squads Dispatched 4 | . 2 2 . . . Investigation 2 | . 2 . . . . Extermination . | . . . . . . Reinforcement 2 | . . 2 . . . Assault . | . . . . . . Garrison . | . . . . . . Intercept . | . . . . . . Searches Triggered . | . . . . . . Construction Impeded 1 | . . 1 . . . Haulers Reinforced . | . . . . . . Active Scanning Responses . | . . . . . . Cargo Convoy Interrupts . | . . . . . . Stealth | -11 -10 -9 -9 -9 -8 --------- Run | Yrd Mat Mat Min Exi Min Distress Signals 3 | . 2 1 . . . Communications Jammed . | . . . . . . Distress Signals . | . . . . . . Times Spotted 42 | . 5 12 19 . 6 Peak Tracking Total 21 | . 3 3 21 . 6 Tactical Retreats 2 | . . . 1 . 1 Traps | -11 -10 -9 -9 -9 -8 ------- Run | Yrd Mat Mat Min Exi Min Traps Triggered 2 | . . 2 . . . Indirectly . | . . . . . . Trap Hack Attempts . | . . . . . . Triggered . | . . . . . . Disarmed 4 | . . 4 . . . Reprogrammed . | . . . . . . Reused . | . . . . . . Traps Extracted . | . . . . . . Installed . | . . . . . . Triggered . | . . . . . . Machines | -11 -10 -9 -9 -9 -8 ---------- Run | Yrd Mat Mat Min Exi Min Machines Disabled 6 | . . 5 1 . . Max in Single Turn 3 | . . 3 . . . Machines Repaired . | . . . . . . Machines Dismantled . | . . . . . . Machines Sabotaged . | . . . . . . Overloaded Fab Kills . | . . . . . . Hacking | -11 -10 -9 -9 -9 -8 --------- Run | Yrd Mat Mat Min Exi Min Machines Accessed 6 | . 4 2 . . . Terminals 6 | . 4 2 . . . Fabricators . | . . . . . . Repair Stations . | . . . . . . Recycling Units . | . . . . . . Scanalyzers . | . . . . . . Garrison Access . | . . . . . . Total Hacks 18 | . 11 7 . . . Successful 6 | . 3 3 . . . Failed 12 | . 8 4 . . . Catastrophic 1 | . . 1 . . . Database Lockouts . | . . . . . . Manual 16 | . 11 5 . . . Terminals 18 | . 11 7 . . . Fabricators . | . . . . . . Repair Stations . | . . . . . . Recycling Units . | . . . . . . Scanalyzers . | . . . . . . Garrison Access . | . . . . . . Terminal Hacks 2 | . . 2 . . . Terminal Index 1 | . . 1 . . . Disarm Traps 1 | . . 1 . . . Fabricator Hacks . | . . . . . . Repair Station Hacks . | . . . . . . Recycling Unit Hacks . | . . . . . . Scanalyzer . | . . . . . . Garrison Access Hacks . | . . . . . . Unauthorized Hacks 4 | . 3 1 . . . Terminals 4 | . 3 1 . . . Botnet 4 | . 3 1 . . . Fabricators . | . . . . . . Repair Stations . | . . . . . . Recycling Units . | . . . . . . Scanalyzers . | . . . . . . Garrison Access . | . . . . . . Data Cores Recovered . | . . . . . . Used . | . . . . . . Hacking Detections 4 | . 3 1 . . . Full Trace Events 2 | . 2 . . . . Feedback Events . | . . . . . . Feedback Blocked . | . . . . . . Robot Schematics Acquired . | . . . . . . Robots Built . | . . . . . . Authchips . | . . . . . . Time . | . . . . . . Total Robot Build Rating . | . . . . . . Part Schematics Acquired . | . . . . . . Parts Built . | . . . . . . Authchips . | . . . . . . Time . | . . . . . . Total Part Build Rating . | . . . . . . Parts Repaired . | . . . . . . Time . | . . . . . . Parts Recycled . | . . . . . . Recycled Matter . | . . . . . . Retrieved Matter . | . . . . . . Retrieved Components . | . . . . . . Parts Scanalyzed . | . . . . . . Part Schematics Acquired . | . . . . . . Parts Damaged . | . . . . . . Bothacking | -11 -10 -9 -9 -9 -8 ------------ Run | Yrd Mat Mat Min Exi Min Used RIF Installer . | . . . . . . Robots Hacked . | . . . . . . Non-combat . | . . . . . . Combat . | . . . . . . Robot Hacks Applied . | . . . . . . Relay Couplers Released . | . . . . . . Fabnet Peak Effective % . | . . . . . . Robots Rewired . | . . . . . . Allies Hacked . | . . . . . . Hacks Repelled . | . . . . . . Allies | -11 -10 -9 -9 -9 -8 -------- Run | Yrd Mat Mat Min Exi Min Total Allies 2 | . . . 2 . . Largest Group 2 | . . . 2 . . Highest-Rated Group 41 | . . . 41 . . Highest-Rated Ally 31 | . . . 31 . . Total Orders . | . . . . . . Ally Attacks 5 | . . . 5 . . Total Damage 60 | . . . 60 . . Kills 1 | . . . 1 . . Allies Corrupted . | . . . . . . Allies Melted . | . . . . . . Intel | -11 -10 -9 -9 -9 -8 ------- Run | Yrd Mat Mat Min Exi Min Active Infowar (turns) 20 | . . . . . 20 ECM 20 | . . . . . 20 Robot Analysis Total . | . . . . . . Derelict Logs Recovered 3 | . . . 3 . . Drone Launches . | . . . . . . Drone Recoveries . | . . . . . . Exploration | -11 -10 -9 -9 -9 -8 ------------- Run | Yrd Mat Mat Min Exi Min Turns Passed 1231 | 35 627 318 155 9 87 Spaces Moved 1268 | 30 497 225 343 30 143 Core 59 | . . . . . 59 Treads . | . . . . . . Legs 96 | 30 66 . . . . Wheels 649 | . 431 218 . . . Hover . | . . . . . . Flight 464 | . . 7 343 30 84 Fastest Speed 31 | 120 100 34 31 31 31 Average Speed 83 | 120 115 110 34 31 47 Slowest Speed 120 | 120 120 119 117 31 120 Overloaded Moves . | . . . . . . Propulsion Burnouts . | . . . . . . Robots Hopped 3 | . . . 3 . . Potential Cave-ins 2 | . . 2 . . . Cave-ins Triggered . | . . . . . . Exploration Rate (%) 35 | 3 57 30 69 8 43 Regions Visited 5 Branch Regions 3 Pre-discovered Areas 1 | . . . 1 . . Known Exits Taken 2 | . 1 . 1 . . Unknown Exits Taken 3 | 1 . 1 . 1 . Scrap Searched 2 | . . . 1 . 1 Spaces Dug . | . . . . . . Terrain Destroyed 103 | . . 103 . . . Melee . | . . . . . . Projectile . | . . . . . . AOE 103 | . . 103 . . . Terrain Rammed . | . . . . . . Walls Destroyed . | . . . . . . Machines Disabled . | . . . . . . Actions | -11 -10 -9 -9 -9 -8 --------- Run | Yrd Mat Mat Min Exi Min Total 1389 | 29 539 265 369 29 158 Wait 29 | . 17 . 12 . . Move 1257 | 29 496 224 336 29 143 Hop 3 | . . . 3 . . Pick Up 22 | . 14 6 2 . . Fast Attach . | . . . . . . Attach 16 | . 1 9 5 . 1 Detach 1 | . . . 1 . . Swap 8 | . 4 4 . . . Drop 9 | . 2 6 . . 1 Fire 37 | . 5 16 10 . 6 Melee . | . . . . . . Ram 7 | . . . . . 7 Kick . | . . . . . . Crush . | . . . . . . Escape Stasis . | . . . . . . Rewire . | . . . . . . Trap . | . . . . . . Miscellaneous . | . . . . . . Route ------- -11/Scrapyard -10/Materials (discovered 2 exits: *Mat / [*Min]) -9/Materials -9/Mines -9/Exiles -8/Mines History --------- Turn | Location | Event 1 | -11/Scrapyard | Discovered new exit (range 1) 36 | -11/Scrapyard | Entered Materials 37 | -10/Materials | Met a group of wandering Federalists 135 | -10/Materials | Lost 3 allies 304 | -10/Materials | Build established: Mutant 458 | -10/Materials | Discovered new exit (range 15) 509 | -10/Materials | Identified exit to Materials 585 | -10/Materials | Discovered new exit (range 15) 663 | -10/Materials | Entered another Materials area 663 | -9/Materials | Evolved 2 slots: Propulsion x2 943 | -9/Materials | Discovered new exit (range 13) 981 | -9/Materials | Entered Mines 984 | -9/Mines | Assembled infested the area 989 | -9/Mines | Assisted by a Guerilla fighting off Assembled 1009 | -9/Mines | Lost 4 parts (2n1u1w) 1024 | -9/Mines | Learned 2 Materials zone layouts 1041 | -9/Mines | Identified exit to Exiles 1107 | -9/Mines | Learned location of Zion (-7) 1120 | -9/Mines | Lost 3 parts (1p1n1u) 1134 | -9/Mines | Deemed a non-threat by the Exiles lab entrance 1136 | -9/Mines | Entered Exiles 1141 | -9/Exiles | Discovered new exit (range 14) 1145 | -9/Exiles | Entered Mines 1210 | -8/Mines | Core integrity fell below 50% 1219 | -8/Mines | Lost 7 parts (1p4n1u1w) 1227 | -8/Mines | Core integrity fell below 20% 1232 | -8/Mines | Destroyed by S-10 Pest with Light Assault Rifle Last Messages --------------- 01147_ Found Arm. Treads. 01147_ Found 37 Matter. 01163_ Penetrated by Slug. 01170_ Flight Unit destroyed. 01175_ Imp. Ion Engine destroyed. 01179_ Flight Unit destroyed. 01186_ Lgt. Assault Rifle destroyed. 01188_ Critical hit (Destroy). 01188_ Flight Unit destroyed. 01188_ ECM Suite destroyed. 01202_ Dropped Sml. Storage Unit. 01214_ S-10 Pest destroyed. 01221_ Slammed into T-07 Excavator. 01221_ Destabilizing: System corrupted (+2). 01224_ Slammed into S-10 Pest. 01229_ Slammed into H-55 Commando. 01229_ H-55 Commando knocked back. 01230_ Slammed into H-55 Commando. 01231_ Penetrated by Slug. 01231_ Slammed into H-55 Commando. Map ----- +----------------------------------------------------+ | | | | | | | | | | | | | | | ?????????????????????????????????????????????????? | | ?????????????????????????????????????????????????? | | ?????????????????????????????????????????????????? | | ??????????????????????????????????#####??????????? | | ??????????????????????????????????# ##?????????? | | ??????????????????????????????????# ##????????? | | ??????????????????????????????????# #????????? | | ???????????????????###??????????### #????????? | | ???????????????????# ##????????## #????????? | | ???????????????????## #???????## ##????????? | | ????????????????????# #??????## ##?????????? | | ????????????????????# ######## ##??????????? | | ????????????????????# ##???????????? | | ????????????????????## ####### ##????????????? | | ?????????????????????# #????## ##?????????????? | | ?????????????????????# #??### #??????????????? | | ?????????????????????# #?## #??????????????? | | ?????????????????????# ### ##??????????????? | | ?????????????????????# ss@ * #???????????????? | | ?????????????????????####h %= ##???????????????? | | ????????????????????????## [ ##????????????????? | | ?????????????????????????## ##?????????????????? | | ??????????????????????????# ###??????????????????? | | ??????????????????????????# #????????????????????? | | ??????????????????????????# #????????????????????? | | ??????????????????????????# #????????????????????? | | ??????????????????????????#!#????????????????????? | | ??????????????????????????# #????????????????????? | | ????????????????????####### #????????????????????? | | ????????????????????# #????????????????????? | | ????????????????????# ##### #????????????????????? | | ??????????????????????????# #????????????????????? | | ??????????????????????????# #????????????????????? | | ??????????????????????????# #????????????????????? | | ??????????????????????????# #????????????????????? | | ??????????????????????????# #????????????????????? | | ??????????????????????????# #????????????????????? | | ??????????????????????????# #????????????????#???? | | ????????????? ##### #############??? #???? | | ???????????????# #### #???? | | ????????????????# #???? | | ????????????????# ################ ##????? | | ????????????????????????????????????## #?????? | +----------------------------------------------------+ Best States ------------- Heat Dissipation 28 Energy Generation 12 Energy Capacity 265 Matter Stores 300 Matter Capacity 300 Sight Range 16 Terrain Scan Density 10 ECM Strength 1 Armor Coverage 225 Evasion (%) 63 Item Schematics ----------------- None Robot Schematics ------------------ None Fabricated ------------ Nothing Repaired ---------- Nothing Alien Tech Used ----------------- None Achievements -------------- Hunted Challenges ------------ None Game ------ Seed ActiveQuantumFilter Manual? 0 Play Time 00:37:08 Cumulative 16.2 hours Start 2025.06.26 @ 14:04:45 End 2025.06.26 @ 15:06:18 Sessions 1 Manual Loads 0 Difficulty Rogue Special Mode None Game No. 29 Rogue 29 Adventurer 0 Explorer 0 Win Type - Total 0 Types 0/0/0/0/0/0/0/0/0/0 Lore% 5 Gallery% 15 Achievement% 17 Wizard Run 0 Options --------- Layout 0 ASCII 0 Keyboard 0 Movement Numpad Keybinds 0 Fullscreen 2 Font 24/Smallcaps Map View 76x50 Zoom Use 0% Tactical HUD 1 Map Filters NONE Filters NONE Steam 1 RUN: b0e3bfa8-775a-4b80-bcaa-788deacdb322